bitfinex/quotes_ETHUSD_20230831
["timestamp","ask_amount","ask_price","bid_price","bid_amount"]
[1693442281914,18.61897,1703.0,1702.9,0.10500915]
[1693442284480,19.62197,1703.0,1702.9,0.10500915]
[1693442285202,19.62197,1703.0,1702.9,0.1]
[1693442285401,22.61226201,1703.0,1702.9,0.1]
[1693442286607,21.60926201,1703.0,1702.9,0.1]
[1693442287338,21.60926201,1703.0,1702.9,0.10500915]
[1693442292171,18.61897,1703.0,1702.9,0.10500915]
[1693442302369,21.51897,1703.0,1702.9,0.10500915]
[1693442308275,21.51897,1703.0,1702.9,0.1]
[1693442309364,22.52197,1703.0,1702.9,0.1]
[1693442316694,23.74902633,1703.0,1702.9,0.1]
[1693442316896,30.30540501,1703.0,1702.9,0.1]
[1693442317368,33.17888566,1703.0,1702.9,0.1]
[1693442317766,34.71270608,1703.0,1702.9,0.1]
[1693442317969,33.17888566,1703.0,1702.9,0.1]
[1693442318264,34.71270608,1703.0,1702.9,0.1]
[1693442318463,33.48564975,1703.0,1702.9,0.1]
[1693442320299,31.95182933,1703.0,1702.6,0.1]
[1693442320476,1.003,1702.7,1702.6,0.1]
[1693442320677,18.62206,1702.7,1702.6,0.1]
[1693442321369,18.62206,1702.7,1702.6,0.10503514]
[1693442325491,22.72197498,1702.7,1702.6,0.10503514]
[1693442325691,24.49554065,1702.7,1702.5,0.1]
[1693442325882,7.68152812,1702.6,1702.5,0.1]
[1693442326087,25.30163812,1702.6,1702.5,0.1]
[1693442326311,23.76878815,1702.6,1702.4,0.1]
[1693442326604,17.62218,1702.4,1702.3,1.138806]
[1693442326784,23.29844316,1702.4,1702.3,1.138806]
[1693442328306,24.30144316,1702.4,1702.3,1.138806]
[1693442328906,5.87355,1702.6,1702.3,7.013206]
[1693442329207,11.74571,1702.8,1702.4,3.0]
[1693442329377,11.74571,1702.8,1702.4,0.00374727]
[1693442329378,11.74637,1702.7,1702.4,0.00374727]
[1693442329570,17.61972,1702.7,1702.4,0.00374727]
[1693442330517,1.003,1702.5,1702.3,1.138806]
[1693442330699,5.87406,1702.4,1702.3,1.138806]
[1693442331396,11.74812,1702.4,1702.3,1.14256147]
[1693442332488,12.75112,1702.4,1702.3,1.14256147]
[1693442333656,5.87406,1702.4,1702.3,1.14256147]
[1693442333819,8.77387,1702.5,1702.3,1.85428762]
[1693442334121,14.64776,1702.5,1702.3,1.85428762]
[1693442335291,14.64776,1702.5,1702.3,1.14256147]
[1693442335495,15.65076,1702.5,1702.3,1.14256147]
[1693442336486,1.003,1702.4,1702.3,1.14256147]
[1693442336905,18.62518,1702.4,1702.3,1.14256147]
[1693442339647,21.49866065,1702.4,1702.3,1.14256147]
[1693442339848,24.79703372,1702.4,1702.3,1.14256147]
[1693442340856,21.92355307,1702.4,1702.3,1.14256147]
[1693442341063,18.62518,1702.4,1702.3,1.14256147]
[1693442342866,12.75112,1702.4,1702.3,1.14256147]
[1693442343161,6.87706,1702.4,1702.3,1.14256147]
[1693442343748,15.65069,1702.5,1702.3,1.14256147]
[1693442343960,2.9,1702.5,1702.3,12.89136147]
[1693442344259,2.9,1702.5,1702.4,7.16319615]
[1693442345321,2.9,1702.5,1702.4,7.1667955]
[1693442347954,2.9,1702.5,1702.4,18.9149155]
[1693442354674,2.9,1702.5,1702.4,19.39400276]
[1693442358648,2.9,1702.5,1702.4,7.1667955]
[1693442358843,2.9,1702.5,1702.4,5.87765935]
[1693442361347,2.9,1702.5,1702.4,11.75171935]
[1693442365244,2.9,1702.5,1702.4,5.87765935]
[1693442366950,2.9,1702.5,1702.4,11.75171935]
[1693442367286,2.9,1702.5,1702.4,5.87765935]
[1693442367650,2.9,1702.5,1702.4,11.75171935]
[1693442367855,2.9,1702.5,1702.4,13.92818488]
[1693442372892,2.9,1702.5,1702.4,8.05412488]
[1693442375492,2.9,1702.5,1702.4,0.00359935]
[1693442375694,3.903,1702.5,1702.4,0.00359935]
[1693442376497,3.903,1702.5,1702.3,1.138806]
[1693442376998,3.903,1702.5,1702.3,7.012996]
[1693442377298,2.9,1702.5,1702.4,0.00345745]
[1693442378304,8.77371,1702.5,1702.3,1.138806]
[1693442379309,8.77371,1702.5,1702.4,0.00345745]
[1693442380293,8.77371,1702.5,1702.3,1.138806]
[1693442381305,8.77371,1702.5,1702.4,0.00345745]
[1693442382505,12.095841,1702.5,1702.3,1.138806]
[1693442383385,12.095841,1702.5,1702.4,0.00345745]
[1693442384283,12.095841,1702.5,1702.3,1.138806]
[1693442385300,12.095841,1702.5,1702.4,0.00345745]
[1693442386238,12.095841,1702.5,1702.3,1.138806]
[1693442387511,12.095841,1702.5,1702.4,0.00345745]
[1693442388203,12.095841,1702.5,1702.3,1.138806]
[1693442389301,12.095841,1702.5,1702.4,0.00345745]
[1693442390209,12.095841,1702.5,1702.3,1.138806]
[1693442391240,12.095841,1702.5,1702.4,0.00345745]
[1693442392211,12.095841,1702.5,1702.3,1.138806]
[1693442392411,9.77671,1702.5,1702.3,1.138806]
[1693442393338,9.77671,1702.5,1702.4,0.00345745]
[1693442394346,9.77671,1702.5,1702.3,1.138806]
[1693442395244,9.77671,1702.5,1702.4,0.00345745]
[1693442395418,9.72671,1702.5,1702.4,0.00345745]
[1693442396263,9.72671,1702.5,1702.3,1.138806]
[1693442397249,9.72671,1702.5,1702.4,0.00345745]
[1693442398254,9.72671,1702.5,1702.3,1.138806]
[1693442399144,9.72671,1702.5,1702.3,1.8501606]
[1693442399346,9.72671,1702.5,1702.4,0.00345605]
[1693442400254,9.72671,1702.5,1702.3,1.8501606]
[1693442401276,9.72671,1702.5,1702.4,0.00345745]
[1693442401441,8.72371,1702.5,1702.4,0.00345745]
[1693442401955,2.85,1702.5,1702.4,0.00345745]
[1693442402454,2.85,1702.5,1702.3,1.8501606]
[1693442403231,2.85,1702.5,1702.4,0.00345745]
[1693442403433,2.85,1702.5,1702.4,0.77625726]
[1693442405161,2.85,1702.5,1702.4,0.00345745]
[1693442406342,2.85,1702.5,1702.3,2.32609953]
[1693442406876,2.8,1702.5,1702.3,2.32609953]
[1693442407245,2.8,1702.5,1702.4,0.00345745]
[1693442408353,2.8,1702.5,1702.3,2.32609953]
[1693442408872,2.8,1702.5,1702.3,8.20046953]
[1693442409168,2.8,1702.5,1702.4,0.82004695]
[1693442409386,2.8,1702.5,1702.4,0.8235044]
[1693442415678,2.8,1702.5,1702.4,0.00345745]
[1693442416315,2.8,1702.5,1702.3,2.32609953]
[1693442417354,2.8,1702.5,1702.4,0.00345745]
[1693442418505,2.8,1702.5,1702.3,2.32609953]
[1693442419284,2.8,1702.5,1702.4,0.00345745]
[1693442420286,2.8,1702.5,1702.3,2.32609953]
[1693442421384,2.8,1702.5,1702.4,0.00345745]
[1693442421879,4.02539588,1702.5,1702.4,0.00345745]
[1693442422272,4.02539588,1702.5,1702.3,2.32609953]
[1693442423349,4.02539588,1702.5,1702.4,0.00345745]
[1693442424294,4.02539588,1702.5,1702.3,8.20048953]
[1693442424590,4.02539588,1702.5,1702.4,0.82004895]
[1693442425376,4.02539588,1702.5,1702.4,0.8235064]
[1693442425566,4.02539588,1702.5,1702.4,0.00345745]
[1693442426361,4.02539588,1702.5,1702.3,8.20048953]
[1693442427376,4.02539588,1702.5,1702.4,0.00345745]
[1693442428298,4.02539588,1702.5,1702.3,8.20048953]
[1693442429278,4.02539588,1702.5,1702.4,0.00345745]
[1693442430205,4.02539588,1702.5,1702.4,0.82385215]
[1693442430377,2.8,1702.5,1702.4,12.5685147]
[1693442430568,2.8,1702.5,1702.4,27.96605535]
[1693442431297,2.8,1702.5,1702.4,27.9695128]
[1693442431503,2.8,1702.5,1702.4,15.9254528]
[1693442432405,3.26176725,1702.5,1702.4,15.92199535]
[1693442432775,3.21176725,1702.5,1702.4,15.92199535]
[1693442438105,0.46176725,1702.5,1702.4,15.92199535]
[1693442438285,0.46176725,1702.5,1702.4,6.6944547]
[1693442438485,1.22539588,1702.7,1702.4,6.6944547]
[1693442438807,0.45917054,1702.6,1702.4,6.6944547]
[1693442439021,0.45917054,1702.6,1702.5,0.66944547]
[1693442441513,1.68456642,1702.6,1702.5,0.66944547]
[1693442441718,0.45917054,1702.6,1702.5,0.66944547]
[1693442447548,0.45917054,1702.6,1702.5,6.54315547]
[1693442447856,3.25917054,1702.6,1702.5,6.54315547]
[1693442455289,4.48456642,1702.6,1702.5,6.54315547]
[1693442455495,3.25917054,1702.6,1702.5,6.54315547]
[1693442456369,3.25917054,1702.6,1702.5,7.01989595]
[1693442461990,3.25917054,1702.6,1702.5,24.6407966]
[1693442462154,3.25917054,1702.6,1702.5,25.1207966]
[1693442463577,3.25917054,1702.6,1702.5,24.6407966]
[1693442463779,3.25917054,1702.6,1702.5,12.8933766]
[1693442464073,5.48756642,1702.6,1702.5,0.47674048]
[1693442464257,5.48756642,1702.6,1702.3,7.48898493]
[1693442464456,1.003,1702.5,1702.3,10.48898493]
[1693442464850,1.36805648,1702.5,1702.3,10.48898493]
[1693442465050,1.36805648,1702.5,1702.3,16.36338493]
[1693442466286,1.36805648,1702.5,1702.3,19.05931042]
[1693442468572,0.36505648,1702.5,1702.4,2.87348065]
[1693442468771,0.36505648,1702.5,1702.4,14.62160065]
[1693442478024,0.36505648,1702.5,1702.4,15.10160065]
[1693442493127,0.36505648,1702.5,1702.4,20.97566065]
[1693442493327,0.36505648,1702.5,1702.4,22.16221279]
[1693442493870,0.36505648,1702.5,1702.4,23.05023776]
[1693442495736,0.36505648,1702.5,1702.4,23.22665956]
[1693442512293,0.36505648,1702.5,1702.4,22.33863459]
[1693442512597,0.36505648,1702.5,1702.4,15.27802245]
[1693442517611,0.36505648,1702.5,1702.4,8.74754065]
[1693442517911,1.36805648,1702.5,1702.4,8.74754065]
[1693442518478,1.36805648,1702.5,1702.3,4.61474493]
[1693442518708,1.36805648,1702.5,1702.3,7.48822558]
[1693442520803,1.003,1702.4,1702.3,1.61474493]
[1693442521113,1.003,1702.4,1702.3,1.138806]
[1693442521279,1.33381233,1702.4,1702.3,1.138806]
[1693442530536,7.20787233,1702.4,1702.3,1.138806]
[1693442530712,8.9761616,1702.4,1702.3,1.138806]
[1693442531805,14.8502216,1702.4,1702.3,1.138806]
[1693442532001,8.9761616,1702.4,1702.3,1.138806]
[1693442536618,14.8502216,1702.4,1702.3,1.138806]
[1693442539358,20.7242816,1702.4,1702.3,1.138806]
[1693442539659,14.8502216,1702.4,1702.3,1.138806]
[1693442546278,14.8502216,1702.4,1702.3,1.3980166]
[1693442547653,8.9761616,1702.4,1702.3,1.3980166]
[1693442547834,7.20787233,1702.4,1702.3,1.3980166]
[1693442552789,7.20787233,1702.4,1702.3,1.138806]
[1693442554091,7.20787233,1702.4,1702.3,0.788806]
[1693442557297,13.08193233,1702.4,1702.3,0.788806]
[1693442557463,15.07779956,1702.4,1702.3,0.788806]
[1693442563257,16.30284677,1702.4,1702.3,0.788806]
[1693442575855,8.43291954,1702.4,1702.3,0.788806]
[1693442576037,1.55585954,1702.4,1702.3,0.788806]
[1693442576237,0.33081233,1702.4,1702.3,0.788806]
[1693442579557,0.33081233,1702.4,1702.3,6.663206]
[1693442579859,0.33081233,1702.4,1702.3,0.788806]
[1693442580225,0.33081233,1702.4,1702.3,2.0526006]
[1693442582763,0.33081233,1702.4,1702.3,16.67488125]
[1693442582948,0.33081233,1702.4,1702.3,25.54928125]
[1693442583162,1.22504721,1702.7,1702.3,25.54928125]
[1693442583366,1.22504721,1702.7,1702.4,8.74724065]
[1693442583565,1.22504721,1702.7,1702.5,6.74833407]
[1693442583736,1.53130901,1702.8,1702.5,9.62181472]
[1693442583932,14.27931901,1702.9,1702.5,9.62181472]
[1693442585806,2.53430901,1702.9,1702.5,9.62181472]
[1693442585937,2.53430901,1702.9,1702.5,15.49552472]
[1693442586134,2.53430901,1702.9,1702.6,1.54955247]
[1693442586339,1.003,1702.8,1702.6,1.54955247]
[1693442589136,0.32095316,1702.7,1702.6,1.54955247]
[1693442596183,0.32095316,1702.7,1702.6,16.16977312]
[1693442596489,1.003,1703.0,1702.6,16.16977312]
[1693442596781,1.003,1703.0,1702.7,7.48995731]
[1693442599052,1.003,1702.9,1702.7,7.48995731]
[1693442599682,1.003,1703.0,1702.7,7.48995731]
[1693442603091,2.7725,1703.0,1702.7,7.48995731]
[1693442604111,0.32164094,1702.9,1702.7,7.48995731]
[1693442604401,0.32164094,1702.9,1702.8,0.71594785]
[1693442606194,0.32164094,1702.9,1702.7,7.48982731]
[1693442609794,1.32464094,1702.9,1702.7,7.48982731]
[1693442612101,1.32464094,1702.9,1702.7,7.95326818]
[1693442617186,1.003,1702.8,1702.7,7.95326818]
[1693442619265,1.32478394,1702.8,1702.7,7.95326818]
[1693442634132,0.32178394,1702.8,1702.7,7.95326818]
[1693442648889,0.32178394,1702.8,1702.7,0.46344087]
[1693442649187,1.32478394,1702.8,1702.6,5.87314]
[1693442649426,1.003,1702.7,1702.6,5.87314]
[1693442649713,1.32153044,1702.7,1702.6,5.87314]
[1693442650514,1.003,1702.7,1702.6,5.87314]
[1693442651376,1.32135408,1702.7,1702.6,5.87314]
[1693442658513,0.31835408,1702.7,1702.6,8.74662065]
[1693442658721,0.31835408,1702.7,1702.6,9.96786725]
[1693442659083,4.8772,1702.9,1702.6,9.96786725]
[1693442661479,4.8772,1702.9,1702.6,8.74662065]
[1693442664086,0.31771501,1702.8,1702.6,8.74662065]
[1693442683684,1.32071501,1702.8,1702.6,8.74662065]
[1693442685145,1.32071501,1702.8,1702.6,2.87348065]
[1693442702123,0.31771501,1702.8,1702.6,2.87348065]
[1693442705823,0.31771501,1702.8,1702.7,2.87348065]
[1693442717460,0.31771501,1702.8,1702.7,3.3428624]
[1693442728483,0.31771501,1702.8,1702.7,3.67714864]
[1693442732487,0.59346775,1702.8,1702.7,3.67714864]
[1693442732789,0.59346775,1702.8,1702.7,3.3428624]
[1693442734007,1.59646775,1702.8,1702.7,3.3428624]
[1693442734219,1.59646775,1702.8,1702.7,0.46938175]
[1693442734371,1.59646775,1702.8,1702.5,5.0976454]
[1693442734710,1.59646775,1702.8,1702.6,2.87348065]
[1693442741999,3.13229004,1702.8,1702.6,2.87348065]
[1693442742410,2.12929004,1702.8,1702.6,2.87348065]
[1693442742926,1.003,1702.7,1702.6,2.87348065]
[1693442743346,1.58170221,1702.7,1702.6,2.87348065]
[1693442754475,1.58170221,1702.7,1702.5,0.4658454]
[1693442754697,1.91766243,1702.7,1702.5,5.87348065]
[1693442756267,1.58170221,1702.7,1702.5,5.87348065]
[1693442756468,1.57766216,1702.7,1702.5,5.87348065]
[1693442761896,1.003,1702.6,1702.5,5.87348065]
[1693442762103,1.57772393,1702.6,1702.5,5.87348065]
[1693442763365,1.58175622,1702.6,1702.5,5.87348065]
[1693442764478,1.58175622,1702.6,1702.5,3.0]
[1693442764826,1.58175622,1702.6,1702.4,0.47343875]
[1693442765123,1.003,1702.5,1702.4,2.87348065]
[1693442765421,1.00702453,1702.5,1702.4,2.87348065]
[1693442767331,1.00702453,1702.5,1702.3,1.25326899]
[1693442767546,1.003,1702.4,1702.3,0.788806]
[1693442768486,1.00701677,1702.4,1702.3,0.788806]
[1693442769133,1.58048397,1702.4,1702.3,0.788806]
[1693442770319,2.01368237,1702.4,1702.3,0.788806]
[1693442777948,7.88774237,1702.4,1702.3,0.788806]
[1693442786526,13.76180237,1702.4,1702.3,0.788806]
[1693442787202,7.88774237,1702.4,1702.3,0.788806]
[1693442789679,13.76180237,1702.4,1702.3,0.788806]
[1693442791333,7.88774237,1702.4,1702.3,0.788806]
[1693442792649,13.76180237,1702.4,1702.3,0.788806]
[1693442793417,7.88774237,1702.4,1702.3,0.788806]
[1693442795761,2.01368237,1702.4,1702.3,0.788806]
[1693442798134,7.88774237,1702.4,1702.3,0.788806]
[1693442810462,9.42161676,1702.4,1702.3,0.788806]
[1693442816403,1.58048397,1702.4,1702.3,0.788806]
[1693442816676,0.57748397,1702.4,1702.3,3.66228665]
[1693442827487,0.57748397,1702.4,1702.3,4.12978611]
[1693442829015,0.57748397,1702.4,1702.3,0.788806]
[1693442829016,1.58048397,1702.4,1702.3,0.788806]
[1693442832529,1.58048397,1702.4,1702.3,0.788806]
[1693442839832,1.58048397,1702.4,1702.3,1.22514762]
[1693442840736,1.58048397,1702.4,1702.3,0.788806]
[1693442844335,1.58048397,1702.4,1702.3,0.538806]
[1693442846934,1.58048397,1702.4,1702.3,0.438806]
[1693442847699,0.57748397,1702.4,1702.3,0.438806]
[1693442865233,0.57748397,1702.4,1702.3,3.31228665]
[1693442865434,0.57748397,1702.4,1702.3,4.00097633]
[1693442868684,0.57748397,1702.4,1702.3,4.48097633]
[1693442869071,0.00401677,1702.4,1702.3,5.502147]
[1693442869472,1.003,1702.8,1702.4,3.0]
[1693442869675,1.003,1702.8,1702.5,2.87348065]
[1693442869851,1.003,1702.8,1702.5,3.46082871]
[1693442870053,0.48312336,1702.7,1702.5,3.46082871]
[1693442870592,0.00347598,1702.6,1702.5,3.46082871]
[1693442871359,0.00347598,1702.6,1702.5,2.87348065]
[1693442874188,0.48632436,1702.6,1702.5,2.87348065]
[1693442884989,0.48632436,1702.6,1702.5,3.33461831]
[1693442894315,1.48932436,1702.6,1702.5,3.33461831]
[1693442922169,1.48932436,1702.6,1702.4,3.0]
[1693442924370,1.48932436,1702.6,1702.4,3.47191935]
[1693442927988,1.48932436,1702.6,1702.4,3.47191935]
[1693442929195,0.48632436,1702.6,1702.4,3.47191935]
[1693442929395,0.48632436,1702.6,1702.4,3.86299189]
[1693442930997,0.48632436,1702.6,1702.4,6.73647254]
[1693442932189,0.48632436,1702.6,1702.5,2.87348065]
[1693442947931,0.48632436,1702.6,1702.5,3.35348065]
[1693442951315,0.48632436,1702.6,1702.5,2.87348065]
[1693442952248,0.48632436,1702.6,1702.4,3.47191935]
[1693442952478,1.8147468,1702.6,1702.4,6.3454]
[1693442953518,1.81127082,1702.6,1702.4,6.3454]
[1693442954654,0.00333593,1702.5,1702.4,6.3454]
[1693442955041,0.49687887,1702.5,1702.4,6.3454]
[1693442959529,0.49687887,1702.5,1702.4,3.3454]
[1693442959731,0.49687887,1702.5,1702.4,0.47191935]
[1693442959924,0.49687887,1702.5,1702.3,1.026206]
[1693442960125,0.49687887,1702.5,1702.3,3.89968665]
[1693442960519,0.49354294,1702.5,1702.3,3.89968665]
[1693442961460,0.0033621,1702.4,1702.3,3.89968665]
[1693442962648,0.0033621,1702.4,1702.3,1.026206]
[1693442964461,0.49509623,1702.4,1702.3,1.026206]
[1693442969479,0.49509623,1702.4,1702.3,1.50409376]
[1693442977897,0.49509623,1702.4,1702.3,4.37757441]
[1693442978399,0.49173413,1702.4,1702.3,4.37757441]
[1693442978588,2.1972,1702.6,1702.3,4.37757441]
[1693442978969,0.48851723,1702.5,1702.3,4.37757441]
[1693442979213,0.48851723,1702.5,1702.4,3.31123809]
[1693442979708,1.003,1702.7,1702.4,3.31123809]
[1693442980272,2.654,1702.8,1702.4,3.31123809]
[1693442981306,2.654,1702.8,1702.4,2.87348065]
[1693442982599,0.00335495,1702.7,1702.4,2.87348065]
[1693442983707,0.00335495,1702.7,1702.5,3.0]
[1693442983940,0.00335495,1702.7,1702.6,3.35348065]
[1693442984589,0.00335495,1702.7,1702.6,20.97359065]
[1693442984590,0.47001132,1702.7,1702.6,20.97359065]
[1693442984783,0.47001132,1702.7,1702.6,23.37094971]
[1693442984985,3.9906,1702.9,1702.6,23.37094971]
[1693442985580,0.00335831,1702.8,1702.6,23.37094971]
[1693442991943,0.00335831,1702.8,1702.6,17.01757971]
[1693442992138,0.00335831,1702.8,1702.6,14.62022065]
[1693442994033,0.46982767,1702.7,1702.6,14.62022065]
[1693442994447,0.47317691,1702.7,1702.6,14.62022065]
[1693442995568,0.47317691,1702.7,1702.6,15.08159446]
[1693443007442,0.47317691,1702.7,1702.6,9.20822446]
[1693443011251,1.47617691,1702.7,1702.6,6.33474381]
[1693443016654,0.47317691,1702.7,1702.6,6.33474381]
[1693443020179,0.47317691,1702.7,1702.6,5.87337]
[1693443020379,1.47617691,1702.7,1702.4,0.45906882]
[1693443020586,1.47617691,1702.7,1702.4,2.87348065]
[1693443020799,9.8400266,1702.7,1702.4,2.87348065]
[1693443021146,6.87637,1702.6,1702.3,4.026206]
[1693443021349,1.003,1702.5,1702.3,6.89968665]
[1693443021549,0.00333636,1702.5,1702.3,6.89968665]
[1693443021749,0.46242265,1702.4,1702.3,6.89968665]
[1693443022615,0.46575126,1702.4,1702.3,6.89968665]
[1693443022917,0.46575126,1702.4,1702.3,4.49657285]
[1693443032601,0.60273799,1702.4,1702.3,4.49657285]
[1693443034833,1.60573799,1702.4,1702.3,0.90917285]
[1693443035139,2.35368679,1702.4,1702.3,0.438806]
[1693443036821,1.60573799,1702.4,1702.3,0.438806]
[1693443071645,13.35385799,1702.4,1702.3,0.438806]
[1693443083082,7.47979799,1702.4,1702.3,0.438806]
[1693443099578,13.35385799,1702.4,1702.3,0.438806]
[1693443100074,19.22791799,1702.4,1702.3,0.438806]
[1693443100277,22.01750579,1702.4,1702.3,0.438806]
[1693443106332,24.89098644,1702.4,1702.3,0.438806]
[1693443114746,24.89098644,1702.4,1702.2,0.1]
[1693443115544,1.003,1702.3,1702.2,0.1]
[1693443115769,18.6262,1702.3,1702.2,0.1]
[1693443115917,21.70718828,1702.3,1702.2,0.1]
[1693443116533,21.7131706,1702.3,1702.2,0.1]
[1693443116746,24.7131706,1702.3,1702.2,0.1]
[1693443117868,24.7131706,1702.3,1702.0,0.1]
[1693443118053,1.003,1702.1,1702.0,0.1]
[1693443119330,14.03446511,1702.1,1702.0,0.1]
[1693443121354,12.75914711,1702.1,1702.0,0.1]
[1693443125249,18.63423711,1702.1,1702.0,0.1]
[1693443128891,19.22626214,1702.1,1702.0,0.1]
[1693443132740,1.60099214,1702.1,1702.0,0.1]
[1693443132891,13.35117214,1702.1,1702.0,0.1]
[1693443133198,20.56137935,1702.1,1702.0,0.1]
[1693443133881,14.68628935,1702.1,1702.0,0.1]
[1693443144331,14.68628935,1702.1,1702.0,0.1]
[1693443155547,14.68628935,1702.1,1702.0,0.1]
[1693443159753,14.68628935,1702.1,1701.9,0.1]
[1693443159914,1.003,1702.0,1701.9,0.1]
[1693443160116,6.87844,1702.0,1701.9,0.1]
[1693443160412,7.46962368,1702.0,1701.9,0.1]
[1693443160615,7.47534085,1702.0,1701.9,0.1]
[1693443165449,8.29474633,1702.0,1701.9,0.1]
[1693443176859,8.29474633,1702.0,1701.9,0.05]
[1693443178759,7.47534085,1702.0,1701.9,0.05]
[1693443186305,0.59690085,1702.0,1701.9,0.05]
[1693443197968,6.47234085,1702.0,1701.9,0.05]
[1693443201602,6.93936874,1702.0,1701.9,0.05]
[1693443204881,7.94236874,1702.0,1701.9,0.05]
[1693443205225,8.85708672,1702.0,1701.9,0.05]
[1693443205705,15.73552672,1702.0,1701.9,0.05]
[1693443206011,14.73252672,1702.0,1701.9,0.05]
[1693443217638,13.35078085,1702.0,1701.9,0.05]
[1693443217939,6.47234085,1702.0,1701.9,0.05]
[1693443221837,0.59690085,1702.0,1701.9,0.05]
[1693443232260,0.59690085,1702.0,1701.9,0.05]
[1693443246883,7.47534085,1702.0,1701.9,0.05]
[1693443247075,13.35078085,1702.0,1701.9,0.05]
[1693443247296,15.44718993,1702.0,1701.9,0.05]
[1693443248903,0.59690085,1702.0,1701.9,0.05]
[1693443249061,0.59690085,1702.0,1701.9,3.94483341]
[1693443249462,0.00571717,1702.0,1701.9,3.94483341]
[1693443249661,0.56204586,1702.0,1701.9,3.94483341]
[1693443255418,0.56204586,1702.0,1701.9,2.92348065]
[1693443256007,0.56204586,1702.0,1701.9,0.05]
[1693443262927,0.56204586,1702.0,1701.9,0.52565608]
[1693443270930,0.56204586,1702.0,1701.9,1.54699491]
[1693443271339,0.56204586,1702.0,1701.9,0.52565608]
[1693443271644,0.56204586,1702.0,1701.9,1.54699372]
[1693443282442,0.56204586,1702.0,1701.9,1.54699905]
[1693443288765,0.56204586,1702.0,1701.9,4.72932824]
[1693443289061,0.56204586,1702.0,1701.9,9.82892278]
[1693443289635,3.9351,1702.6,1701.9,10.41632278]
[1693443289836,3.9351,1702.6,1702.0,5.95222362]
[1693443290063,1.7364,1702.5,1702.0,4.93088065]
[1693443290256,1.7364,1702.5,1702.1,0.49308806]
[1693443290453,1.7364,1702.5,1702.1,3.36656871]
[1693443290663,0.00528844,1702.4,1702.1,3.36656871]
[1693443304116,0.53496719,1702.3,1702.1,3.36656871]
[1693443304597,0.00509984,1702.2,1702.1,3.36656871]
[1693443305895,0.00509984,1702.2,1702.1,3.83254061]
[1693443309376,0.00509984,1702.2,1702.1,6.83254061]
[1693443309595,0.00509984,1702.2,1702.1,8.85680081]
[1693443311617,0.00509984,1702.2,1702.1,7.85380081]
[1693443312611,3.8731,1702.6,1702.1,9.38300081]
[1693443312783,4.26041,1702.6,1702.2,2.87348065]
[1693443313215,0.53424773,1702.5,1702.2,2.87348065]
[1693443313579,0.00510318,1702.4,1702.2,2.87348065]
[1693443319023,0.53397642,1702.3,1702.2,2.87348065]
[1693443319625,0.539072,1702.3,1702.2,2.87348065]
[1693443319805,0.539072,1702.3,1702.2,3.70965471]
[1693443320120,0.00509558,1702.3,1702.2,3.70965471]
[1693443320623,3.8731,1702.6,1702.2,3.70965471]
[1693443320824,3.8731,1702.6,1702.2,2.87348065]
[1693443321200,0.53424773,1702.5,1702.2,2.87348065]
[1693443321406,0.53424773,1702.5,1702.3,3.0]
[1693443321611,0.53424773,1702.5,1702.4,2.87348065]
[1693443321820,3.855,1702.8,1702.4,2.87348065]
[1693443322015,4.3408,1702.8,1702.4,2.87348065]
[1693443323830,0.0049268,1702.7,1702.4,2.87348065]
[1693443332818,0.0049268,1702.7,1702.4,3.35342419]
[1693443334118,0.63115341,1702.6,1702.4,3.35342419]
[1693443334805,0.00682287,1702.5,1702.4,3.35342419]
[1693443335005,0.00682287,1702.5,1702.4,4.16377245]
[1693443339702,0.00682287,1702.5,1702.4,0.47994354]
[1693443339900,0.00682287,1702.5,1702.3,3.0]
[1693443340120,0.00682287,1702.5,1702.3,5.87348065]
[1693443341914,0.00682287,1702.5,1702.4,5.51387168]
[1693443342170,0.00682287,1702.5,1702.4,6.58127168]
[1693443342428,0.00682287,1702.5,1702.4,9.23201835]
[1693443344553,0.00619951,1702.8,1702.7,3.56112872]
[1693443348753,0.63929578,1702.8,1702.7,3.56112872]
[1693443352872,0.63929578,1702.8,1702.7,4.58203649]
[1693443353378,0.63929578,1702.8,1702.7,3.56112872]
[1693443353880,0.63929578,1702.8,1702.7,4.58203709]
[1693443359663,0.63929578,1702.8,1702.7,5.04899334]
[1693443365418,0.63929578,1702.8,1702.7,5.04899334]
[1693443384311,0.63929578,1702.8,1702.7,4.36134527]
[1693443385841,0.63929578,1702.8,1702.7,4.36134398]
[1693443386837,0.63929578,1702.8,1702.7,1.48789693]
[1693443389034,0.63929578,1702.8,1702.7,0.46695625]
[1693443389227,0.63929578,1702.8,1702.6,3.0]
[1693443389738,0.63929578,1702.8,1702.6,3.46130329]
[1693443404132,0.63929578,1702.8,1702.6,0.46130329]
[1693443404332,0.63929578,1702.8,1702.6,3.0]
[1693443406967,0.63929578,1702.8,1702.5,1.06443487]
[1693443407174,0.63929578,1702.8,1702.5,3.93791552]
[1693443414477,0.63929578,1702.8,1702.6,6.19352342]
[1693443414646,0.63929578,1702.8,1702.7,4.20909556]
[1693443422675,2.14699036,1702.8,1702.7,4.20909556]
[1693443422875,13.89235036,1702.8,1702.7,4.20909556]
[1693443423283,8.01967036,1702.8,1702.7,4.20909556]
[1693443424089,13.89235036,1702.8,1702.7,4.20909556]
[1693443425263,2.14699036,1702.8,1702.7,4.20909556]
[1693443426390,8.01967036,1702.8,1702.7,4.20909556]
[1693443437184,13.89235036,1702.8,1702.7,4.20909556]
[1693443444845,8.01967036,1702.8,1702.7,4.20909556]
[1693443445348,13.89235036,1702.8,1702.7,4.20909556]
[1693443459561,14.89535036,1702.8,1702.7,4.20909556]
[1693443462896,20.76803036,1702.8,1702.7,4.20909556]
[1693443474809,19.76503036,1702.8,1702.7,4.20909556]
[1693443475018,13.89235036,1702.8,1702.7,4.20909556]
[1693443479231,2.14699036,1702.8,1702.7,4.20909556]
[1693443479407,0.63929578,1702.8,1702.7,4.20909556]
[1693443494920,6.51197578,1702.8,1702.7,4.20909556]
[1693443523743,6.51142602,1702.8,1702.7,4.20909556]
[1693443528881,5.87832975,1702.8,1702.7,4.20909556]
[1693443529108,6.45210954,1702.8,1702.7,4.20909556]
[1693443535482,7.94962849,1702.8,1702.7,4.20909556]
[1693443547167,6.45210954,1702.8,1702.7,4.20909556]
[1693443547299,0.57942954,1702.8,1702.7,4.20909556]
[1693443550397,0.57942954,1702.8,1702.7,5.23003933]
[1693443554545,0.57942954,1702.8,1702.7,4.20909556]
[1693443554745,0.57942954,1702.8,1702.7,5.23003043]